[Event "*** SCC Grand Prix: Titled Tuesday Blitz"]
[Site "Chess.com"]
[Date "2020.06.23"]
[Round "3"]
[White "SavelievAlexei"]
[Black "DenisQ"]
[Result "0-1"]
[WhiteElo "2410"]
[BlackElo "2640"]
[TimeControl "180+1"]
[EndTime "10:29:49 PDT"]
[Termination "DenisQ won on time"]

1. e4 {[%clk 0:02:57.8]} 1... c6 {[%clk 0:02:58.4]} 2. d4 {[%clk 0:02:57.2]}
2... d5 {[%clk 0:02:58.1]} 3. exd5 {[%clk 0:02:58.1]} 3... cxd5 {[%clk
0:02:57.9]} 4. Bd3 {[%clk 0:02:58.8]} 4... Nf6 {[%clk 0:02:57.7]} 5. c3 {[%clk
0:02:59.3]} 5... Nc6 {[%clk 0:02:57.8]} 6. Bf4 {[%clk 0:02:59]} 6... Bg4 {[%clk
0:02:57.1]} 7. Qb3 {[%clk 0:02:59.6]} 7... Qd7 {[%clk 0:02:56.7]} 8. Nd2 {[%clk
0:02:59.7]} 8... e6 {[%clk 0:02:56.8]} 9. Ngf3 {[%clk 0:03:00.2]} 9... Bxf3
{[%clk 0:02:56.3]} 10. Nxf3 {[%clk 0:02:57.6]} 10... Bd6 {[%clk 0:02:56.5]} 11.
Ne5 {[%clk 0:02:45.2]} 11... Qc7 {[%clk 0:02:54.5]} 12. O-O {[%clk 0:02:33.6]}
12... Nxe5 {[%clk 0:02:31.9]} 13. dxe5 {[%clk 0:02:31]} 13... Bxe5 {[%clk
0:02:32.8]} 14. Bxe5 {[%clk 0:02:23.8]} 14... Qxe5 {[%clk 0:02:33.7]} 15. Qb5+
{[%clk 0:01:49.5]} 15... Ke7 {[%clk 0:02:15.5]} 16. Qxb7+ {[%clk 0:01:48.6]}
16... Nd7 {[%clk 0:02:14.9]} 17. Bb5 {[%clk 0:01:49.2]} 17... Qd6 {[%clk
0:02:13.5]} 18. Bxd7 {[%clk 0:01:48.6]} 18... Rhb8 {[%clk 0:02:02.3]} 19. Qc6
{[%clk 0:01:46.1]} 19... Qxd7 {[%clk 0:02:01.8]} 20. Qc5+ {[%clk 0:01:45.3]}
20... Qd6 {[%clk 0:02:01.1]} 21. Qd4 {[%clk 0:01:44.6]} 21... Kf8 {[%clk
0:01:55.8]} 22. c4 {[%clk 0:01:44.8]} 22... Rb4 {[%clk 0:01:51]} 23. b3 {[%clk
0:01:43.7]} 23... Qb6 {[%clk 0:01:13.1]} 24. Qd3 {[%clk 0:01:40.4]} 24... dxc4
{[%clk 0:01:03.9]} 25. Qxh7 {[%clk 0:01:40.2]} 25... Rd8 {[%clk 0:00:46.6]} 26.
bxc4 {[%clk 0:01:16.4]} 26... Qd4 {[%clk 0:00:35.4]} 27. Rac1 {[%clk 0:01:15.5]}
27... Rxc4 {[%clk 0:00:22]} 28. Rxc4 {[%clk 0:01:09.9]} 28... Qxc4 {[%clk
0:00:22.9]} 29. Qh8+ {[%clk 0:01:09.3]} 29... Ke7 {[%clk 0:00:23.1]} 30. Qxg7
{[%clk 0:01:10.2]} 30... Qxa2 {[%clk 0:00:22.6]} 31. h4 {[%clk 0:00:58.4]} 31...
Qd5 {[%clk 0:00:19.4]} 32. Rc1 {[%clk 0:00:32.2]} 32... a5 {[%clk 0:00:18.7]}
33. Rc7+ {[%clk 0:00:31.4]} 33... Rd7 {[%clk 0:00:18.5]} 34. Rxd7+ {[%clk
0:00:31.2]} 34... Qxd7 {[%clk 0:00:17.8]} 35. Qg5+ {[%clk 0:00:31.3]} 35... Kf8
{[%clk 0:00:17.9]} 36. Qxa5 {[%clk 0:00:31.3]} 36... Qd1+ {[%clk 0:00:17.6]} 37.
Kh2 {[%clk 0:00:31.8]} 37... Qd4 {[%clk 0:00:18.2]} 38. Kg3 {[%clk 0:00:18.5]}
38... e5 {[%clk 0:00:18.2]} 39. Qa8+ {[%clk 0:00:16.8]} 39... Kg7 {[%clk
0:00:17.8]} 40. Qf3 {[%clk 0:00:17.7]} 40... Kf8 {[%clk 0:00:12.7]} 41. Kh3
{[%clk 0:00:16.4]} 41... e4 {[%clk 0:00:11.9]} 42. Qf5 {[%clk 0:00:14.2]} 42...
e3 {[%clk 0:00:09.6]} 43. fxe3 {[%clk 0:00:07.4]} 43... Qxe3+ {[%clk 0:00:10.5]}
44. g3 {[%clk 0:00:07.8]} 44... Qe1 {[%clk 0:00:10.5]} 45. h5 {[%clk 0:00:04.6]}
45... Qh1+ {[%clk 0:00:09.2]} 46. Kg4 {[%clk 0:00:04.9]} 46... Qd1+ {[%clk
0:00:09.5]} 47. Kh4 {[%clk 0:00:05.4]} 47... Qd2 {[%clk 0:00:08.2]} 48. Qf4
{[%clk 0:00:03.1]} 48... Qh2+ {[%clk 0:00:07.8]} 49. Kg4 {[%clk 0:00:03.3]}
49... Qe2+ {[%clk 0:00:08.5]} 50. Kg5 {[%clk 0:00:03.2]} 50... Qe6 {[%clk
0:00:07.8]} 51. Qf5 {[%clk 0:00:02.6]} 51... Qe3+ {[%clk 0:00:06.5]} 52. Qf4
{[%clk 0:00:02.9]} 52... Qe6 {[%clk 0:00:06.3]} 53. Qb8+ {[%clk 0:00:02.5]}
53... Kg7 {[%clk 0:00:05.8]} 54. Qb2+ {[%clk 0:00:02.3]} 54... Kh7 {[%clk
0:00:04.7]} 0-1

[Event "*** SCC Grand Prix: Titled Tuesday Blitz"]
[Site "Chess.com"]
[Date "2020.06.23"]
[Round "3"]
[White "PowerThinking2650"]
[Black "WinstonSilvakov"]
[Result "0-1"]
[WhiteElo "2329"]
[BlackElo "2153"]
[TimeControl "180+1"]
[EndTime "10:29:49 PDT"]
[Termination "WinstonSilvakov won by checkmate"]

1. e4 {[%clk 0:03:00.9]} 1... Nf6 {[%clk 0:02:59.7]} 2. e5 {[%clk 0:02:59.3]}
2... Nd5 {[%clk 0:02:58.3]} 3. d4 {[%clk 0:02:59.5]} 3... d6 {[%clk 0:02:57.3]}
4. c4 {[%clk 0:02:59.4]} 4... Nb6 {[%clk 0:02:57]} 5. exd6 {[%clk 0:02:58.5]}
5... cxd6 {[%clk 0:02:56.1]} 6. Nc3 {[%clk 0:02:54.6]} 6... g6 {[%clk
0:02:55.9]} 7. h4 {[%clk 0:02:45.8]} 7... Bg7 {[%clk 0:02:53.6]} 8. h5 {[%clk
0:02:44.3]} 8... Nc6 {[%clk 0:02:27.1]} 9. Be3 {[%clk 0:02:37.9]} 9... e5 {[%clk
0:02:23]} 10. dxe5 {[%clk 0:01:50.9]} 10... Bxe5 {[%clk 0:01:53.4]} 11. Nf3
{[%clk 0:01:36.5]} 11... Bg4 {[%clk 0:01:40.7]} 12. hxg6 {[%clk 0:01:15.8]}
12... fxg6 {[%clk 0:01:33.1]} 13. Be2 {[%clk 0:01:09.6]} 13... Bxf3 {[%clk
0:01:27.6]} 14. gxf3 {[%clk 0:01:07.8]} 14... Bxc3+ {[%clk 0:01:13.3]} 15. bxc3
{[%clk 0:01:06.8]} 15... Qf6 {[%clk 0:01:13.5]} 16. Qd2 {[%clk 0:00:51.3]} 16...
O-O {[%clk 0:00:48]} 17. O-O-O {[%clk 0:00:39]} 17... Ne5 {[%clk 0:00:46.7]} 18.
Qxd6 {[%clk 0:00:32.2]} 18... Qxd6 {[%clk 0:00:44.8]} 19. Rxd6 {[%clk
0:00:31.3]} 19... Nbxc4 {[%clk 0:00:43.2]} 20. Re6 {[%clk 0:00:20.1]} 20... Rae8
{[%clk 0:00:38.6]} 21. Rxe8 {[%clk 0:00:18.3]} 21... Rxe8 {[%clk 0:00:38.9]} 22.
f4 {[%clk 0:00:18.7]} 22... Nxe3 {[%clk 0:00:36.9]} 23. fxe3 {[%clk 0:00:17.4]}
23... Nd7 {[%clk 0:00:32.7]} 24. Bc4+ {[%clk 0:00:17]} 24... Kg7 {[%clk
0:00:33.1]} 25. Rh3 {[%clk 0:00:13.6]} 25... Nb6 {[%clk 0:00:33]} 26. Bd3 {[%clk
0:00:12.7]} 26... Nd5 {[%clk 0:00:19.5]} 27. Kd2 {[%clk 0:00:12.7]} 27... Nf6
{[%clk 0:00:19.9]} 28. Rh1 {[%clk 0:00:10.5]} 28... Ne4+ {[%clk 0:00:20.1]} 29.
Bxe4 {[%clk 0:00:09.9]} 29... Rxe4 {[%clk 0:00:21]} 30. Kd3 {[%clk 0:00:10]}
30... Ra4 {[%clk 0:00:17.6]} 31. Rb1 {[%clk 0:00:10]} 31... b6 {[%clk
0:00:16.8]} 32. Rb2 {[%clk 0:00:10.3]} 32... h5 {[%clk 0:00:16.6]} 33. c4 {[%clk
0:00:10]} 33... g5 {[%clk 0:00:14.7]} 34. fxg5 {[%clk 0:00:09.6]} 34... Kg6
{[%clk 0:00:14.8]} 35. Kd4 {[%clk 0:00:09.9]} 35... Kxg5 {[%clk 0:00:12.8]} 36.
e4 {[%clk 0:00:09.6]} 36... h4 {[%clk 0:00:12.2]} 37. e5 {[%clk 0:00:08.9]}
37... b5 {[%clk 0:00:08.8]} 38. Rxb5 {[%clk 0:00:07.9]} 38... Rxa2 {[%clk
0:00:08.5]} 39. Kd5 {[%clk 0:00:07.5]} 39... Rd2+ {[%clk 0:00:07]} 40. Ke6
{[%clk 0:00:07.4]} 40... h3 {[%clk 0:00:07.9]} 41. Rb3 {[%clk 0:00:07]} 41... h2
{[%clk 0:00:07.6]} 42. Rh3 {[%clk 0:00:06.4]} 42... Kg4 {[%clk 0:00:07.2]} 43.
Rh8 {[%clk 0:00:06.3]} 43... a5 {[%clk 0:00:05.3]} 44. c5 {[%clk 0:00:06.3]}
44... a4 {[%clk 0:00:05]} 45. c6 {[%clk 0:00:06.6]} 45... a3 {[%clk 0:00:05.4]}
46. c7 {[%clk 0:00:06.8]} 46... Rc2 {[%clk 0:00:05.2]} 47. Kd7 {[%clk
0:00:06.5]} 47... a2 {[%clk 0:00:03.6]} 48. Rxh2 {[%clk 0:00:05.6]} 48... Rxc7+
{[%clk 0:00:02.6]} 49. Kxc7 {[%clk 0:00:05]} 49... a1=Q {[%clk 0:00:03.5]} 50.
Rh7 {[%clk 0:00:04.6]} 50... Qxe5+ {[%clk 0:00:03.6]} 51. Kd7 {[%clk 0:00:04.3]}
51... Qf5+ {[%clk 0:00:04.1]} 52. Ke8 {[%clk 0:00:03.6]} 52... Qxh7 {[%clk
0:00:05]} 53. Kf8 {[%clk 0:00:03.6]} 53... Kf5 {[%clk 0:00:05.6]} 54. Ke8 {[%clk
0:00:04.5]} 54... Ke6 {[%clk 0:00:05.4]} 55. Kd8 {[%clk 0:00:05.4]} 55... Qd7#
{[%clk 0:00:05.2]} 0-1

[Event "*** SCC Grand Prix: Titled Tuesday Blitz"]
[Site "Chess.com"]
[Date "2020.06.23"]
[Round "3"]
[White "Brave_spirit12"]
[Black "rubhani"]
[Result "0-1"]
[WhiteElo "2297"]
[BlackElo "2511"]
[TimeControl "180+1"]
[EndTime "10:29:51 PDT"]
[Termination "rubhani won by checkmate"]

1. e4 {[%clk 0:03:00.9]} 1... c6 {[%clk 0:02:59.5]} 2. Nc3 {[%clk 0:03:00.5]}
2... d5 {[%clk 0:03:00.4]} 3. Nf3 {[%clk 0:03:01.1]} 3... Bg4 {[%clk 0:03:00.3]}
4. h3 {[%clk 0:03:00.7]} 4... Bxf3 {[%clk 0:03:00.8]} 5. Qxf3 {[%clk 0:03:00.8]}
5... e6 {[%clk 0:03:01.4]} 6. d3 {[%clk 0:02:59.1]} 6... Bc5 {[%clk 0:03:01.3]}
7. Bd2 {[%clk 0:02:57.2]} 7... Nd7 {[%clk 0:03:00.9]} 8. g4 {[%clk 0:02:56.1]}
8... Ne7 {[%clk 0:03:00.8]} 9. Bg2 {[%clk 0:02:55.6]} 9... O-O {[%clk
0:03:00.5]} 10. O-O-O {[%clk 0:02:54.9]} 10... b5 {[%clk 0:02:59.1]} 11. h4
{[%clk 0:02:52.4]} 11... a5 {[%clk 0:02:32]} 12. h5 {[%clk 0:02:45.8]} 12... b4
{[%clk 0:02:29.2]} 13. Nb1 {[%clk 0:02:40.5]} 13... a4 {[%clk 0:02:11.9]} 14. h6
{[%clk 0:02:31.1]} 14... g6 {[%clk 0:02:09.1]} 15. d4 {[%clk 0:02:24.2]} 15...
Bxd4 {[%clk 0:01:57.4]} 16. Bxb4 {[%clk 0:01:51.8]} 16... Bh8 {[%clk 0:01:40.6]}
17. exd5 {[%clk 0:01:46.6]} 17... cxd5 {[%clk 0:01:40]} 18. Bc3 {[%clk
0:01:44.8]} 18... Ne5 {[%clk 0:01:31.4]} 19. Qe2 {[%clk 0:01:38.2]} 19... Qb8
{[%clk 0:01:16]} 20. Rhe1 {[%clk 0:01:28.5]} 20... Nc4 {[%clk 0:01:14.6]} 21.
Bxh8 {[%clk 0:01:23.2]} 21... Kxh8 {[%clk 0:01:14.2]} 22. c3 {[%clk 0:00:54.7]}
22... Qf4+ {[%clk 0:01:11.9]} 23. Nd2 {[%clk 0:00:54.2]} 23... Rab8 {[%clk
0:00:59.7]} 24. Qf3 {[%clk 0:00:24]} 24... Qxf3 {[%clk 0:00:53]} 25. Nxf3 {[%clk
0:00:24.5]} 25... Rxb2 {[%clk 0:00:43.8]} 26. Ne5 {[%clk 0:00:23.1]} 26... Rfb8
{[%clk 0:00:36.5]} 27. Nxc4 {[%clk 0:00:20.5]} 27... dxc4 {[%clk 0:00:34.4]} 28.
Re4 {[%clk 0:00:11.2]} 28... Nd5 {[%clk 0:00:29.3]} 29. Rxc4 {[%clk 0:00:09.2]}
29... Rb1+ {[%clk 0:00:19.8]} 30. Kd2 {[%clk 0:00:09.5]} 30... R1b2+ {[%clk
0:00:17.6]} 31. Ke1 {[%clk 0:00:09.2]} 31... Rxa2 {[%clk 0:00:17.8]} 32. Bxd5
{[%clk 0:00:08.8]} 32... exd5 {[%clk 0:00:18.1]} 33. Rc7 {[%clk 0:00:09.4]}
33... Kg8 {[%clk 0:00:18.2]} 34. Rxd5 {[%clk 0:00:07.6]} 34... Rb1+ {[%clk
0:00:18.1]} 35. Rd1 {[%clk 0:00:07.9]} 35... Rxd1+ {[%clk 0:00:18.6]} 36. Kxd1
{[%clk 0:00:08.4]} 36... Kf8 {[%clk 0:00:19.2]} 37. Rc8+ {[%clk 0:00:08.6]}
37... Ke7 {[%clk 0:00:19.2]} 38. Rh8 {[%clk 0:00:08.7]} 38... Rxf2 {[%clk
0:00:19.3]} 39. Kc1 {[%clk 0:00:08.3]} 39... a3 {[%clk 0:00:19.5]} 40. Kb1
{[%clk 0:00:08.5]} 40... a2+ {[%clk 0:00:18.6]} 41. Ka1 {[%clk 0:00:08.7]} 41...
Kf6 {[%clk 0:00:18.7]} 42. Rxh7 {[%clk 0:00:08.7]} 42... Kg5 {[%clk 0:00:19.1]}
43. Rh8 {[%clk 0:00:09]} 43... Kxg4 {[%clk 0:00:19.5]} 44. h7 {[%clk 0:00:08.7]}
44... Rh2 {[%clk 0:00:19.8]} 45. Rf8 {[%clk 0:00:08.8]} 45... Rxh7 {[%clk
0:00:19.1]} 46. Kxa2 {[%clk 0:00:08.8]} 46... f5 {[%clk 0:00:19.7]} 47. c4
{[%clk 0:00:08.6]} 47... f4 {[%clk 0:00:20]} 48. Rf6 {[%clk 0:00:07.9]} 48... g5
{[%clk 0:00:19.7]} 49. Kb3 {[%clk 0:00:07.9]} 49... f3 {[%clk 0:00:19.9]} 50. c5
{[%clk 0:00:08]} 50... Kg3 {[%clk 0:00:20.3]} 51. Kb4 {[%clk 0:00:07.3]} 51...
g4 {[%clk 0:00:20.7]} 52. c6 {[%clk 0:00:07.6]} 52... f2 {[%clk 0:00:20.9]} 53.
Kb5 {[%clk 0:00:08]} 53... Kg2 {[%clk 0:00:21.3]} 54. Kb6 {[%clk 0:00:08.1]}
54... f1=Q {[%clk 0:00:21.5]} 55. Rg6 {[%clk 0:00:08.5]} 55... g3 {[%clk
0:00:21]} 56. Rd6 {[%clk 0:00:07.7]} 56... Qb1+ {[%clk 0:00:21.4]} 57. Kc5
{[%clk 0:00:07.8]} 57... Rh5+ {[%clk 0:00:21.5]} 58. Kd4 {[%clk 0:00:07.6]}
58... Qd1+ {[%clk 0:00:21.6]} 59. Kc4 {[%clk 0:00:07.8]} 59... Qxd6 {[%clk
0:00:22.5]} 60. Kb3 {[%clk 0:00:07.8]} 60... Rb5+ {[%clk 0:00:22.2]} 61. Ka2
{[%clk 0:00:06.9]} 61... Qb4 {[%clk 0:00:21.4]} 62. c7 {[%clk 0:00:07.8]} 62...
Qb2# {[%clk 0:00:21.7]} 0-1

[Event "*** SCC Grand Prix: Titled Tuesday Blitz"]
[Site "Chess.com"]
[Date "2020.06.23"]
[Round "3"]
[White "Casablanca"]
[Black "tsvet2005"]
[Result "0-1"]
[WhiteElo "2340"]
[BlackElo "2642"]
[TimeControl "180+1"]
[EndTime "10:29:51 PDT"]
[Termination "tsvet2005 won on time"]

1. d4 {[%clk 0:03:00.9]} 1... d5 {[%clk 0:02:59.1]} 2. c4 {[%clk 0:02:58.6]}
2... e6 {[%clk 0:02:59.2]} 3. Nc3 {[%clk 0:02:58.9]} 3... c6 {[%clk 0:02:59.2]}
4. Nf3 {[%clk 0:02:57.5]} 4... Nf6 {[%clk 0:02:59.2]} 5. Bg5 {[%clk 0:02:57]}
5... h6 {[%clk 0:02:59]} 6. Bh4 {[%clk 0:02:57]} 6... dxc4 {[%clk 0:02:58.9]} 7.
e4 {[%clk 0:02:53.7]} 7... g5 {[%clk 0:02:58.9]} 8. Bg3 {[%clk 0:02:53.8]} 8...
b5 {[%clk 0:02:59.1]} 9. a3 {[%clk 0:02:54.3]} 9... Bb7 {[%clk 0:02:56.4]} 10.
h4 {[%clk 0:02:49.7]} 10... g4 {[%clk 0:02:55.3]} 11. Ne5 {[%clk 0:02:49.6]}
11... Nbd7 {[%clk 0:02:54.6]} 12. Be2 {[%clk 0:02:48.1]} 12... h5 {[%clk
0:02:33.9]} 13. O-O {[%clk 0:02:36.5]} 13... Be7 {[%clk 0:02:29.2]} 14. f4
{[%clk 0:02:25.4]} 14... Qb6 {[%clk 0:02:07.6]} 15. f5 {[%clk 0:02:13.9]} 15...
O-O-O {[%clk 0:02:01]} 16. fxe6 {[%clk 0:02:11.9]} 16... fxe6 {[%clk 0:01:58.6]}
17. Nf7 {[%clk 0:02:10.3]} 17... Rhf8 {[%clk 0:01:33.5]} 18. Nxd8 {[%clk
0:02:09.7]} 18... Rxd8 {[%clk 0:01:34.4]} 19. e5 {[%clk 0:02:00.5]} 19... Nd5
{[%clk 0:01:31.1]} 20. Nxd5 {[%clk 0:02:00.2]} 20... cxd5 {[%clk 0:01:31.3]} 21.
Rf7 {[%clk 0:01:56]} 21... Re8 {[%clk 0:01:25.9]} 22. Qd2 {[%clk 0:01:49.9]}
22... Qd8 {[%clk 0:01:22.3]} 23. Raf1 {[%clk 0:01:48.7]} 23... Bxh4 {[%clk
0:01:21.6]} 24. Rxd7 {[%clk 0:01:23.6]} 24... Kxd7 {[%clk 0:01:18.9]} 25. Rf7+
{[%clk 0:01:24.3]} 25... Be7 {[%clk 0:01:12.3]} 26. Bh4 {[%clk 0:01:17.2]} 26...
Kc8 {[%clk 0:01:08.9]} 27. Rxe7 {[%clk 0:01:09.7]} 27... Rxe7 {[%clk 0:01:09.8]}
28. Qb4 {[%clk 0:01:09.6]} 28... Kd7 {[%clk 0:01:00.3]} 29. Qd6+ {[%clk
0:01:07.7]} 29... Ke8 {[%clk 0:00:59]} 30. Qc5 {[%clk 0:00:42.9]} 30... a6
{[%clk 0:00:48.4]} 31. Qa7 {[%clk 0:00:17.3]} 31... Bc8 {[%clk 0:00:35.6]} 32.
Bxe7 {[%clk 0:00:16]} 32... Qxe7 {[%clk 0:00:36.5]} 33. Qb8 {[%clk 0:00:14.5]}
33... Qd7 {[%clk 0:00:28.3]} 34. Bd1 {[%clk 0:00:14.2]} 34... Qc6 {[%clk
0:00:27]} 35. Bc2 {[%clk 0:00:12]} 35... Kd7 {[%clk 0:00:22.9]} 36. Qa7+ {[%clk
0:00:10.6]} 36... Qc7 {[%clk 0:00:21.5]} 37. Qxc7+ {[%clk 0:00:05.9]} 37... Kxc7
{[%clk 0:00:22.4]} 38. Bg6 {[%clk 0:00:06.5]} 38... h4 {[%clk 0:00:22.3]} 39. g3
{[%clk 0:00:07.1]} 39... hxg3 {[%clk 0:00:20.8]} 40. Kg2 {[%clk 0:00:07.4]}
40... a5 {[%clk 0:00:17.3]} 41. Kxg3 {[%clk 0:00:08.3]} 41... b4 {[%clk
0:00:18.2]} 42. axb4 {[%clk 0:00:08.8]} 42... axb4 {[%clk 0:00:19.1]} 43. Kxg4
{[%clk 0:00:09.3]} 43... Kc6 {[%clk 0:00:17.5]} 44. Kf3 {[%clk 0:00:09.4]} 44...
Kb5 {[%clk 0:00:17.9]} 45. Ke2 {[%clk 0:00:10]} 45... Ka4 {[%clk 0:00:18.2]} 46.
Bc2+ {[%clk 0:00:08.6]} 46... b3 {[%clk 0:00:14]} 47. Bg6 {[%clk 0:00:05.7]}
47... c3 {[%clk 0:00:04.6]} 48. Kd1 {[%clk 0:00:03.1]} 48... cxb2 {[%clk
0:00:04.2]} 49. Kd2 {[%clk 0:00:01.6]} 49... Ka3 {[%clk 0:00:05]} 50. Bb1 {[%clk
0:00:01.6]} 50... Bd7 {[%clk 0:00:05.1]} 51. Kc3 {[%clk 0:00:02.5]} 51... Bb5
{[%clk 0:00:04.8]} 52. Kd2 {[%clk 0:00:02.9]} 52... Kb4 {[%clk 0:00:04]} 53. Bg6
{[%clk 0:00:03.1]} 53... Bc4 {[%clk 0:00:04.3]} 54. Bb1 {[%clk 0:00:03]} 54...
Ka3 {[%clk 0:00:02.8]} 55. Kc3 {[%clk 0:00:02.6]} 55... Bb5 {[%clk 0:00:03.2]}
56. Bg6 {[%clk 0:00:02.5]} 56... Ka2 {[%clk 0:00:03]} 0-1

[Event "*** SCC Grand Prix: Titled Tuesday Blitz"]
[Site "Chess.com"]
[Date "2020.06.23"]
[Round "3"]
[White "kakakz"]
[Black "DonBroca"]
[Result "1-0"]
[WhiteElo "2346"]
[BlackElo "2137"]
[TimeControl "180+1"]
[EndTime "10:29:52 PDT"]
[Termination "kakakz won on time"]

1. d4 {[%clk 0:02:59.7]} 1... Nf6 {[%clk 0:02:58.9]} 2. c4 {[%clk 0:02:58.4]}
2... d6 {[%clk 0:02:53.6]} 3. Nc3 {[%clk 0:02:57.5]} 3... g6 {[%clk 0:02:53.8]}
4. e4 {[%clk 0:02:56.1]} 4... Bg7 {[%clk 0:02:53.3]} 5. Nf3 {[%clk 0:02:56.4]}
5... Nc6 {[%clk 0:02:51.8]} 6. d5 {[%clk 0:02:53.3]} 6... Nb8 {[%clk 0:02:50.8]}
7. Be2 {[%clk 0:02:48.7]} 7... O-O {[%clk 0:02:50.2]} 8. O-O {[%clk 0:02:46]}
8... e5 {[%clk 0:02:44.4]} 9. Bg5 {[%clk 0:02:39.9]} 9... h6 {[%clk 0:02:43.7]}
10. Bh4 {[%clk 0:02:39.7]} 10... Nbd7 {[%clk 0:02:40]} 11. Ne1 {[%clk
0:02:34.2]} 11... g5 {[%clk 0:02:30.1]} 12. Bg3 {[%clk 0:02:32.7]} 12... Nh7
{[%clk 0:02:27.4]} 13. Bg4 {[%clk 0:02:25.4]} 13... Nc5 {[%clk 0:02:25.7]} 14.
b4 {[%clk 0:02:17.9]} 14... Bxg4 {[%clk 0:02:06]} 15. Qxg4 {[%clk 0:02:16.1]}
15... f5 {[%clk 0:02:04.8]} 16. exf5 {[%clk 0:02:08.7]} 16... e4 {[%clk
0:01:43.2]} 17. bxc5 {[%clk 0:01:59.7]} 17... Bxc3 {[%clk 0:01:41]} 18. Rc1
{[%clk 0:01:57.4]} 18... Nf6 {[%clk 0:01:36.7]} 19. Qe2 {[%clk 0:01:55.7]} 19...
Bd4 {[%clk 0:01:31]} 20. cxd6 {[%clk 0:01:50.7]} 20... cxd6 {[%clk 0:01:31.9]}
21. Nc2 {[%clk 0:01:44.9]} 21... Bc5 {[%clk 0:01:30.1]} 22. Rfd1 {[%clk
0:01:38.4]} 22... Qb6 {[%clk 0:01:08.6]} 23. Rb1 {[%clk 0:01:32.4]} 23... Qc7
{[%clk 0:01:00.1]} 24. h4 {[%clk 0:01:11.3]} 24... Rae8 {[%clk 0:00:52.2]} 25.
Nd4 {[%clk 0:00:53.2]} 25... Bxd4 {[%clk 0:00:50.6]} 26. Rxd4 {[%clk 0:00:54.1]}
26... Qc5 {[%clk 0:00:48.8]} 27. Rdd1 {[%clk 0:00:14.3]} 27... b6 {[%clk
0:00:48.2]} 28. hxg5 {[%clk 0:00:13.8]} 28... hxg5 {[%clk 0:00:47.1]} 29. Rb5
{[%clk 0:00:14.2]} 29... Qc7 {[%clk 0:00:43.3]} 30. Qe3 {[%clk 0:00:14.4]} 30...
Nh7 {[%clk 0:00:33.6]} 31. Rd4 {[%clk 0:00:13.5]} 31... Qg7 {[%clk 0:00:28.2]}
32. Rxe4 {[%clk 0:00:12.2]} 32... Nf6 {[%clk 0:00:26.5]} 33. Re6 {[%clk
0:00:11.8]} 33... Ng4 {[%clk 0:00:19.4]} 34. Qe4 {[%clk 0:00:10.2]} 34... Qa1+
{[%clk 0:00:18.6]} 35. Rb1 {[%clk 0:00:10.2]} 35... Rxe6 {[%clk 0:00:13.7]} 36.
fxe6 {[%clk 0:00:08]} 36... Qxa2 {[%clk 0:00:09.5]} 37. Qg6+ {[%clk 0:00:06.6]}
37... Kh8 {[%clk 0:00:09]} 38. Qh5+ {[%clk 0:00:06]} 38... Kg7 {[%clk
0:00:07.9]} 39. Qxg5+ {[%clk 0:00:06.5]} 39... Kh8 {[%clk 0:00:06.4]} 40. Qh5+
{[%clk 0:00:06.7]} 40... Kg7 {[%clk 0:00:06.7]} 41. Qxg4+ {[%clk 0:00:07.1]}
41... Kh7 {[%clk 0:00:06.2]} 42. Re1 {[%clk 0:00:07.4]} 42... Qd2 {[%clk
0:00:03.6]} 43. Qe4+ {[%clk 0:00:07.4]} 43... Kg7 {[%clk 0:00:02]} 44. e7 {[%clk
0:00:07.5]} 44... Re8 {[%clk 0:00:02.5]} 45. Bxd6 {[%clk 0:00:07.6]} 45... Qc3
{[%clk 0:00:01.3]} 46. Be5+ {[%clk 0:00:07.4]} 1-0